bitfinex/quotes_ETHUSD_20250923
["timestamp","ask_amount","ask_price","bid_price","bid_amount"]
[1758636713920,3.0,4212.2,4212.1,0.02]
[1758636714062,4.119,4212.2,4212.1,0.02]
[1758636714520,7.119,4212.2,4212.1,0.02]
[1758636714988,7.121,4212.2,4212.1,0.02]
[1758636716262,3.0,4212.2,4212.1,0.02]
[1758636716889,3.0,4212.2,4212.1,2.39411267]
[1758636717066,7.118,4212.2,4212.1,0.02]
[1758636717279,7.117,4212.2,4212.1,0.02]
[1758636718113,7.117,4212.2,4212.1,2.39411267]
[1758636718114,3.0,4212.2,4212.1,2.39411267]
[1758636718279,3.0,4212.6,4212.3,2.37396733]
[1758636718478,3.0,4212.6,4212.4,0.2322]
[1758636718679,0.6887,4213.6,4212.1,0.4677]
[1758636718911,0.6887,4213.6,4212.2,0.2322]
[1758636719128,1.14016436,4214.5,4212.3,0.47143999]
[1758636719129,2.053,4213.8,4212.3,0.47143999]
[1758636719280,0.02,4214.9,4212.3,0.47143999]
[1758636719281,4.116,4213.7,4212.4,0.2322]
[1758636719622,4.116,4213.7,4212.6,2.37383088]
[1758636719824,4.116,4213.7,4212.8,2.37371819]
[1758636720025,3.0,4213.6,4212.8,2.37371819]
[1758636720178,3.0,4213.6,4212.7,0.2322]
[1758636720379,3.0,4213.6,4212.8,2.37369487]
[1758636720619,2.37337108,4213.5,4212.5,2.37387788]
[1758636720800,2.37337108,4213.5,4210.1,0.02]
[1758636720801,2.37349666,4213.2,4212.1,4.3722]
[1758636721038,3.0,4213.0,4212.1,6.74630782]
[1758636721522,3.0,4213.0,4212.1,0.2562]
[1758636721678,3.0,4213.0,4212.2,2.37405109]
[1758636722042,5.37362038,4213.0,4212.1,2.63031016]
[1758636722323,0.2344,4213.9,4212.2,0.70364056]
[1758636722613,0.4543,4214.1,4212.6,2.37379389]
[1758636722614,3.0,4213.7,4212.6,2.37379389]
[1758636722826,0.1315175,4213.6,4212.8,2.37370743]
[1758636722989,0.1315175,4213.6,4212.7,0.2322]
[1758636723183,2.37336905,4213.5,4212.7,0.2322]
[1758636723376,0.1315175,4213.4,4212.7,0.2322]
[1758636723580,3.1315175,4213.6,4213.0,0.1184]
[1758636723780,3.0,4213.6,4213.0,0.1184]
[1758636724014,4.24655996,4213.5,4213.0,0.1184]
[1758636724226,3.13155996,4213.4,4213.0,0.1184]
[1758636724515,0.13155996,4213.3,4213.0,0.3506]
[1758636724830,0.13155996,4213.3,4213.0,2.49198823]
[1758636725026,0.1184,4213.7,4213.2,2.37349151]
[1758636725234,4.113,4213.5,4213.1,0.2322]
[1758636725533,4.112,4213.6,4213.2,2.60565065]
[1758636725729,4.112,4213.6,4213.0,0.1184]
[1758636726229,4.112,4213.6,4212.3,2.37399051]
[1758636726230,3.0,4213.3,4212.1,0.024]
[1758636726432,2.18464847,4213.2,4212.1,0.024]
[1758636726642,0.1184,4212.3,4212.1,0.024]
[1758636726820,7.25064847,4212.2,4212.1,0.024]
[1758636727005,10.31340478,4212.2,4212.1,0.024]
[1758636727206,10.81988448,4212.2,4212.1,0.024]
[1758636727409,3.0,4211.6,4211.0,0.1184]
[1758636727606,4.24964847,4211.5,4211.0,0.1184]
[1758636727807,0.1184,4211.6,4211.0,0.1184]
[1758636727808,0.13164847,4211.4,4211.0,0.1184]
[1758636728019,0.6887,4212.2,4211.0,0.1184]
[1758636728020,4.119,4211.5,4211.2,0.6799]
[1758636728212,1.013,4211.7,4211.3,0.2322]
[1758636728504,0.13187237,4211.6,4211.3,2.72512493]
[1758636728709,3.0,4211.7,4211.4,0.2322]
[1758636728925,0.13187237,4211.6,4211.4,0.2322]
[1758636729106,3.13187237,4211.8,4211.4,2.60670177]
[1758636729302,0.13187237,4211.7,4211.5,2.37444556]
[1758636729543,0.13187237,4211.7,4211.4,0.02374507]
[1758636729701,0.13187237,4211.6,4211.3,0.1184]
[1758636730046,0.13187237,4211.5,4211.3,0.1184]
[1758636730335,0.13187237,4211.7,4211.5,2.37440835]
[1758636730642,0.13187237,4211.6,4211.5,2.60660835]
[1758636730794,0.13187237,4211.6,4211.3,0.1184]
[1758636731142,0.13187237,4211.5,4211.3,0.1184]
[1758636731434,0.13187237,4211.4,4211.1,0.02]
[1758636731598,0.13187237,4211.3,4211.1,0.02]
[1758636731805,0.13187237,4211.2,4211.1,0.02]
[1758636732219,0.63547142,4212.3,4211.1,0.50021786]
[1758636732432,0.13201167,4212.2,4211.2,9.23102006]
[1758636732635,0.85086507,4213.5,4212.8,2.37371699]
[1758636732636,0.50691248,4213.4,4212.8,2.37371699]
[1758636732817,0.13197405,4213.3,4212.6,2.37382001]
[1758636733138,1.296,4213.4,4212.9,2.37361851]
[1758636733139,0.13197405,4213.2,4212.9,2.37361851]
[1758636733302,0.13197405,4213.1,4212.9,0.2289]
[1758636733503,0.13197405,4213.0,4212.8,2.37367725]
[1758636733700,0.13197405,4212.9,4212.5,0.4495]
[1758636734028,0.13208904,4212.8,4212.7,2.37377453]
[1758636734341,0.13208904,4212.8,4212.7,3.59715099]
[1758636734542,0.13208904,4212.8,4212.7,3.14765099]
[1758636734753,0.13208904,4212.8,4212.7,0.6784]
[1758636734928,0.13208904,4212.8,4212.7,3.05217453]
[1758636735130,0.13208904,4212.8,4212.7,3.07591227]
[1758636735453,0.13208904,4212.8,4212.7,3.05217453]
[1758636735606,0.13128904,4212.8,4212.7,3.05217453]
[1758636735932,0.13128904,4212.8,4212.7,3.59715098]
[1758636736535,0.13128904,4212.8,4212.7,3.05217453]
[1758636736712,0.13128904,4212.8,4212.1,0.2289]
[1758636736919,0.50859286,4212.7,4211.9,2.37422335]
[1758636737221,0.50859286,4212.6,4211.7,2.37429718]
[1758636737429,0.50859286,4212.5,4211.8,2.37427563]
[1758636737738,0.50859286,4212.4,4212.1,2.37406457]
[1758636737958,0.50859286,4212.3,4212.1,2.37406457]
[1758636738161,0.50859286,4212.2,4212.1,2.37406457]
[1758636738325,0.50859286,4212.2,4211.7,0.2289]
[1758636738642,0.63547142,4211.8,4210.9,0.2289]
[1758636738841,1.36725831,4211.7,4211.0,0.02374732]
[1758636739009,0.7298684,4211.6,4211.1,2.39466693]
[1758636739210,1.36725831,4211.5,4211.1,0.02]
[1758636739531,1.36725831,4211.4,4211.1,0.02]
[1758636739730,0.7298684,4211.3,4211.1,0.02]
[1758636739935,0.7298684,4211.2,4211.1,2.39465474]
[1758636740812,0.7298684,4211.2,4211.1,0.02]
[1758636741214,0.7298684,4211.2,4211.1,2.39467645]
[1758636741609,0.7298684,4211.2,4211.1,2.62357645]
[1758636742241,0.7298684,4211.2,4211.1,2.74197645]
[1758636742442,0.73044755,4211.2,4211.1,2.74197645]
[1758636742661,1.36783746,4211.2,4211.1,0.1384]
[1758636742827,1.36783746,4211.2,4211.1,3.19147645]
[1758636743025,0.73044755,4211.2,4211.1,1.13594765]
[1758636743336,0.73044755,4211.2,4211.1,2.74197645]
[1758636744041,0.73044755,4211.2,4211.1,2.51307645]
[1758636744543,0.73044755,4211.2,4211.1,2.74197645]
[1758636744746,0.73044755,4211.2,4211.1,3.19147645]
[1758636745545,0.63738991,4211.8,4211.7,2.37433815]
[1758636745750,0.73283175,4211.8,4211.7,2.37433815]
[1758636745946,0.73283175,4211.8,4211.7,2.49273815]
[1758636746748,0.73283175,4211.8,4211.7,0.1184]
[1758636746949,0.73283175,4211.8,4211.7,2.49273815]
[1758636747251,0.73283175,4211.8,4211.7,0.1184]
[1758636747444,0.73283175,4211.8,4211.7,2.49273815]
[1758636747752,0.86592872,4211.8,4211.7,2.49273815]
[1758636748429,0.86592872,4211.8,4211.7,0.3473]
[1758636748749,0.86592872,4211.8,4211.7,2.49273815]
[1758636749130,0.86592872,4211.8,4211.7,0.1184]
[1758636749435,1.50474284,4211.8,4211.7,0.1184]
[1758636749946,0.86593218,4211.8,4211.7,0.1184]
[1758636750148,1.33883218,4211.8,4211.3,4.115]
[1758636750325,2.22570185,4211.7,4211.5,0.1184]
[1758636750650,3.0,4211.5,4211.1,0.1384]
[1758636750824,0.63893326,4211.3,4211.1,0.1384]
[1758636751026,0.86594912,4211.2,4211.1,0.1384]
[1758636751243,1.33884912,4211.2,4211.1,0.1384]
[1758636751728,1.97778238,4211.2,4211.1,0.1384]
[1758636751929,1.50488238,4211.2,4211.1,0.1384]
[1758636752542,1.50488238,4211.2,4211.1,2.51307645]
[1758636752757,1.50488238,4211.2,4211.1,0.1384]
[1758636752957,0.86594912,4211.2,4211.1,0.1384]
[1758636754119,1.58684912,4211.2,4211.1,0.1384]
[1758636754375,4.81233425,4211.2,4211.1,0.02]
[1758636754579,2.37467645,4211.1,4210.6,0.004]
[1758636754723,2.37490203,4210.7,4210.6,0.004]
[1758636755047,6.24085115,4210.7,4210.6,0.004]
[1758636755443,6.96175115,4210.7,4210.6,0.004]
[1758636756357,7.75375115,4210.7,4210.6,0.004]
[1758636756723,6.16718407,4210.2,4210.1,0.02]
[1758636757057,13.20513319,4210.2,4210.1,0.02]
[1758636757240,13.92603319,4210.2,4210.1,0.02]
[1758636758758,15.20309631,4210.2,4210.1,0.02]
[1758636759062,13.92603319,4210.2,4210.1,0.02]
[1758636759259,13.92603319,4210.2,4210.1,0.024]
[1758636760376,13.92603319,4210.2,4209.1,0.02]
[1758636760377,2.37574836,4209.2,4209.1,0.02]
[1758636760661,9.84229133,4209.2,4209.1,0.02]
[1758636760873,11.07420565,4209.2,4209.1,0.02]
[1758636761231,11.71107357,4209.2,4209.1,0.02]
[1758636761425,11.19417819,4209.2,4209.1,0.02]
[1758636761840,11.83123085,4209.2,4209.1,0.02]
[1758636762065,11.83068423,4209.2,4209.1,0.02]
[1758636762230,11.83069345,4209.2,4209.1,0.02]
[1758636762431,11.19417819,4209.2,4209.1,0.02]
[1758636762856,3.98532983,4209.2,4209.1,0.02]
[1758636763040,12.47236387,4209.2,4209.1,0.02]
[1758636763247,12.98337819,4209.2,4209.1,0.02]
[1758636763573,13.22887819,4209.2,4209.1,0.02]
[1758636764541,0.792,4209.0,4208.1,0.02]
[1758636764742,0.792,4209.0,4207.8,0.004]
[1758636764743,2.37642585,4208.0,4207.8,0.004]
[1758636765054,42.57046232,4207.9,4207.8,0.004]
[1758636765358,2.37687773,4207.2,4205.9,0.2261]
[1758636765557,10.64067676,4207.2,4205.9,0.2261]
[1758636765782,11.84812876,4207.2,4205.8,0.004]
[1758636765985,11.84812876,4207.2,4206.2,14.5]
[1758636766370,2.37736563,4206.4,4206.2,14.5]
[1758636766568,7.25211737,4206.3,4206.2,14.5]
[1758636766764,3.13229593,4206.3,4206.2,14.7261]
[1758636767075,2.37610953,4208.6,4206.2,14.7261]
[1758636767076,0.63651526,4207.7,4206.2,16.90985948]
[1758636767286,0.13220064,4207.6,4206.9,2.37701307]
[1758636767493,3.13220064,4207.5,4207.0,0.2261]
[1758636767657,0.13220064,4207.4,4207.1,0.2261]
[1758636767975,0.13220064,4208.2,4207.6,2.37663097]
[1758636768143,4.25220064,4208.1,4207.5,0.2261]
[1758636768344,3.0,4207.9,4207.5,0.2261]
[1758636768551,3.0,4207.9,4207.6,0.2261]
[1758636768752,0.02,4208.9,4207.9,2.37643802]
[1758636768978,0.13214886,4208.8,4207.9,2.37646288]
[1758636769182,3.0,4208.6,4207.7,0.6975]
[1758636769346,0.13214886,4208.5,4207.7,0.2261]
[1758636769676,2.37631291,4208.2,4208.0,14.5]
[1758636769980,2.5093,4208.5,4208.0,14.5]
[1758636769981,7.25214886,4208.1,4208.0,14.5]
[1758636770180,0.13214886,4208.1,4208.0,14.7261]
[1758636770493,0.13214886,4208.8,4208.0,17.10248458]
[1758636770674,3.0,4208.1,4208.0,15.1975]
[1758636770880,3.13211095,4208.1,4208.0,15.1975]
[1758636771376,3.13211095,4208.1,4208.0,14.7261]
[1758636771704,3.13211095,4208.1,4208.0,14.5]
[1758636771902,7.25311095,4208.1,4208.0,14.5]
[1758636772694,3.13211095,4208.1,4208.0,14.5]
[1758636772852,7.25211095,4208.1,4208.0,14.5]
[1758636773248,7.25211095,4208.1,4206.9,0.2261]
[1758636773449,0.13211095,4208.0,4207.4,2.37672244]
[1758636773691,0.13211095,4208.0,4207.5,16.87669484]
[1758636773890,0.13211095,4208.0,4207.5,14.5]
[1758636774103,2.37665177,4207.6,4207.5,14.5]
[1758636774306,9.62776272,4207.6,4207.5,14.5]
[1758636774765,7.25111095,4207.6,4207.5,14.5]
[1758636775692,3.13211095,4207.6,4207.5,14.5]
[1758636775992,3.13211095,4207.6,4207.5,14.7261]
[1758636776301,3.13211095,4207.6,4207.5,19.04681825]
[1758636776469,3.0,4207.6,4207.5,19.16521825]
[1758636777054,3.0,4207.6,4207.5,15.3159]
[1758636777258,3.0,4207.6,4207.5,17.69260825]
[1758636777682,4.118,4208.0,4207.9,2.37648233]
[1758636777884,0.13225604,4208.0,4207.9,2.37648233]
[1758636778107,0.13225604,4208.1,4208.0,2.37642585]
[1758636778274,4.119,4208.6,4208.2,2.49470594]
[1758636778457,0.13232752,4208.5,4208.4,2.3761544]
[1758636778660,0.13232752,4208.5,4208.4,2.37619998]
[1758636778979,0.13232752,4208.5,4208.4,2.60229998]
[1758636779293,0.13232752,4208.5,4208.4,3.07369998]
[1758636779605,0.13242059,4208.8,4208.7,2.37600306]
[1758636779895,0.13242059,4208.8,4208.7,2.6021306]
[1758636780199,0.13242059,4208.8,4208.7,0.2261]
[1758636780408,0.13242059,4208.8,4208.4,0.1184]
[1758636780570,0.1394,4208.9,4208.7,14.5]
[1758636780772,0.13252315,4208.8,4208.7,14.5]
[1758636780965,0.1184,4208.7,4207.9,2.37646413]
[1758636781195,3.1184,4208.5,4207.8,4.2384]
[1758636781396,3.1184,4208.5,4208.0,14.5]
[1758636781397,0.13252315,4208.4,4208.0,14.5]
[1758636781595,0.021,4208.9,4208.2,2.37626563]
[1758636781596,0.13252315,4208.3,4208.2,2.37626563]
[1758636781830,0.13252315,4208.3,4208.2,2.60236563]
[1758636782533,0.13252315,4208.3,4208.2,4.86464879]
[1758636782923,0.13252315,4208.3,4208.2,3.19216563]
[1758636783138,0.021,4208.9,4208.4,2.37618827]
[1758636783298,0.021,4208.9,4208.8,2.49437414]
[1758636783825,0.021,4208.9,4208.8,7.33663388]
[1758636784131,0.021,4208.9,4208.8,17.22047414]
[1758636784630,0.021,4208.9,4208.8,16.99437414]
[1758636784956,0.021,4208.9,4208.8,17.69187414]
[1758636785154,0.021,4208.9,4208.8,14.6184]
[1758636785621,0.021,4208.9,4208.8,16.99437414]
[1758636785622,0.0202,4208.9,4208.8,16.99437414]
[1758636785795,0.0202,4208.9,4208.8,17.22047414]
[1758636786000,0.0202,4208.9,4208.8,18.18063945]
[1758636786235,0.0202,4208.9,4208.8,22.30063945]
[1758636787201,0.0202,4208.9,4208.8,22.18223945]
[1758636788951,0.0202,4208.9,4208.8,22.18023945]
[1758636789379,0.0202,4208.9,4208.8,18.06223945]
[1758636789542,0.0202,4208.9,4208.8,22.17923945]
[1758636789745,1e-08,4208.9,4208.8,22.97123945]
[1758636790170,1e-08,4208.9,4208.8,22.18023945]
[1758636791239,1e-08,4208.9,4208.8,22.97223945]
[1758636793488,1e-08,4208.9,4208.8,16.87597414]
[1758636793693,1e-08,4208.9,4208.8,14.5]
[1758636793854,1e-08,4208.9,4208.8,16.87597414]
[1758636794366,1e-08,4208.9,4208.8,20.99597414]
[1758636794561,1e-08,4208.9,4208.6,2.37606444]
[1758636794562,1e-08,4208.9,4208.2,0.4575]
[1758636794751,1e-08,4208.9,4207.8,2.2945]
[1758636794954,1e-08,4208.9,4207.9,4.51246132]
[1758636795186,0.1327316,4208.8,4208.4,2.37616089]
[1758636795479,0.1327316,4208.7,4208.5,2.37613801]
[1758636795699,0.5996316,4208.6,4208.3,14.5]
[1758636795986,0.8343316,4208.5,4208.3,18.622]
[1758636796322,0.5996316,4208.4,4208.3,18.622]
[1758636796934,0.59975804,4208.4,4208.3,14.5]
[1758636797135,6.21065802,4208.4,4208.3,14.5]
[1758636797375,6.93890864,4208.4,4208.3,14.5]
[1758636797672,2.37658565,4207.8,4207.1,0.1424]
[1758636797877,0.13285804,4207.7,4207.1,0.1424]
[1758636798083,3.7016,4207.7,4207.6,14.5]
[1758636798230,3.83456234,4207.7,4207.6,14.5]
[1758636798560,3.13296234,4207.7,4207.6,14.5]
[1758636799072,3.59986234,4207.7,4207.6,14.5]
[1758636799263,3.83456234,4207.7,4207.6,14.5]
[1758636799472,3.13296234,4207.7,4207.6,14.5]
[1758636800336,3.59986234,4207.7,4207.6,14.5]
[1758636801354,3.83456234,4207.7,4207.6,14.5]
[1758636802070,6.21115762,4207.7,4207.6,14.5]
[1758636802449,3.83456234,4207.7,4207.6,14.5]
[1758636802886,3.59986234,4207.7,4207.6,14.5]
[1758636804883,3.13296234,4207.7,4207.6,14.5]
[1758636805875,3.59986234,4207.7,4207.6,14.5]
[1758636806177,6.21115762,4207.7,4207.6,14.5]
[1758636806373,3.83456234,4207.7,4207.6,14.5]
[1758636806752,3.59986234,4207.7,4207.6,14.5]
[1758636806949,3.13296234,4207.7,4207.6,14.5]
[1758636807181,3.49986234,4207.7,4207.6,14.5]
[1758636807381,3.73456234,4207.7,4207.6,14.5]
[1758636807698,3.03296234,4207.7,4207.6,14.5]
[1758636807844,7.14296234,4207.7,4207.6,14.5]
[1758636808477,3.03296234,4207.7,4207.6,14.5]
[1758636810279,0.13296234,4207.7,4207.6,23.66345177]
[1758636810483,0.001,4208.5,4207.8,2.37653251]
[1758636810484,0.13210359,4208.3,4207.8,2.37653251]
[1758636810656,3.001,4208.5,4208.1,2.37636192]
[1758636811399,3.001,4208.5,4208.2,16.87627115]
[1758636811702,3.001,4208.5,4208.2,14.5]
[1758636812003,5.37625644,4208.3,4208.2,14.5]
[1758636812206,3.1184,4208.2,4207.5,0.004]
[1758636812385,2.37665177,4207.6,4207.5,0.004]
[1758636812579,9.48665177,4207.6,4207.5,0.004]
[1758636812891,9.48665177,4207.6,4206.2,0.004]
[1758636812892,3.792,4207.5,4206.2,0.004]
[1758636813092,6.16887773,4207.2,4206.2,0.004]
[1758636813276,2.56629014,4207.2,4206.2,14.504]
[1758636813468,3.0,4207.0,4206.2,14.504]
[1758636813673,2.37712643,4206.8,4206.2,14.504]
[1758636813976,7.11,4206.7,4206.2,14.504]
[1758636814386,7.5769,4206.7,4206.2,14.504]
[1758636814920,7.11,4206.7,4206.2,16.88144189]
[1758636815221,7.11,4206.7,4206.2,14.504]
[1758636815513,10.18876024,4206.7,4206.2,14.504]
[1758636815870,10.41008707,4206.7,4206.2,14.504]
[1758636816605,7.79822683,4206.7,4206.2,14.504]
[1758636816780,10.41008707,4206.7,4206.2,14.504]
[1758636817180,10.18876024,4206.7,4206.2,14.504]
[1758636818494,10.40991801,4206.7,4206.2,14.504]
[1758636818827,7.79805777,4206.7,4206.2,14.504]
[1758636819040,9.48716024,4206.7,4206.2,14.504]
[1758636819443,9.48816024,4206.7,4206.2,14.504]
[1758636819940,10.18976024,4206.7,4206.2,14.504]
[1758636820140,10.92054385,4206.7,4206.2,14.504]
[1758636820340,10.41091706,4206.7,4206.2,14.504]
[1758636820539,10.92062998,4206.7,4206.2,14.504]
[1758636820742,11.71262998,4206.7,4206.2,0.004]
[1758636820949,3.1693863,4206.3,4206.2,0.004]
[1758636821147,10.50154312,4206.3,4206.2,0.004]
[1758636821448,13.74525604,4206.3,4206.2,0.004]
[1758636822744,13.87821546,4206.3,4206.2,0.004]
[1758636822946,12.40921546,4206.3,4206.2,0.004]
[1758636823258,0.13279359,4206.3,4206.2,0.246]
[1758636823553,0.11849726,4206.8,4206.2,3.17524282]
[1758636823554,0.13279359,4206.7,4206.2,3.17524282]
[1758636823713,0.13279359,4206.6,4206.3,0.6754]
[1758636823914,0.13279359,4206.5,4206.4,15.1754]
[1758636824566,0.13279359,4206.5,4206.4,14.5]
[1758636824916,0.13279359,4206.5,4206.4,14.742]
[1758636825650,0.13279359,4206.5,4206.4,15.1754]
[1758636825853,0.13279359,4206.5,4206.4,17.55272978]
[1758636826146,0.13279359,4206.5,4206.4,14.742]
[1758636826712,0.13279359,4206.5,4206.4,15.1754]
[1758636827164,0.13279359,4206.5,4206.4,17.55272978]
[1758636827311,0.13279359,4206.5,4206.4,15.1754]
[1758636827512,0.13279359,4206.5,4206.4,14.742]
[1758636827716,9.62106685,4206.5,4206.4,14.5]
[1758636828055,6.1693863,4206.3,4206.2,0.004]
[1758636828353,11.99861286,4206.3,4206.2,0.004]
[1758636828654,11.82343123,4206.3,4206.2,0.004]
[1758636830111,12.67510642,4206.3,4206.2,0.004]
[1758636831523,7.09510642,4206.3,4206.2,0.004]
[1758636831730,12.41243123,4206.3,4206.2,0.004]
[1758636832239,3.792,4206.2,4205.8,0.004]
[1758636832439,14.73310642,4206.3,4205.8,0.004]
[1758636832440,30.84579679,4205.9,4205.8,0.004]
[1758636832737,35.82384172,4205.9,4205.8,0.004]
[1758636833069,36.50084172,4205.9,4205.8,0.004]
[1758636833377,13.88165733,4205.9,4205.8,0.004]
[1758636834363,7.47605733,4205.9,4205.8,0.004]
[1758636834667,13.26360301,4205.9,4205.8,0.004]
[1758636835130,3.86604493,4205.9,4205.8,0.004]
[1758636835475,7.46605251,4205.9,4205.8,0.004]
[1758636835674,10.35485733,4205.9,4205.8,0.004]
[1758636837383,11.82385733,4205.9,4205.8,0.004]
[1758636837690,6.16966893,4205.8,4205.3,0.004]
[1758636837903,3.16983854,4205.5,4205.3,0.004]
[1758636838108,11.99912505,4205.5,4205.3,0.004]
[1758636838413,12.67612505,4205.5,4205.3,0.004]
[1758636839590,11.58828347,4205.5,4205.3,0.004]
[1758636839984,11.82488347,4205.5,4205.3,0.004]
[1758636840213,6.17000818,4205.2,4205.1,0.02]
[1758636840414,11.14805311,4205.2,4205.1,0.02]
[1758636840917,13.10194373,4205.2,4205.1,0.02]
[1758636841539,6.28846473,4205.1,4205.0,0.004]
[1758636841735,9.44810966,4205.1,4205.0,0.004]
[1758636841941,9.88850966,4205.1,4205.0,0.004]
[1758636842142,6.17012128,4205.0,4204.9,0.004]
[1758636842324,13.10325362,4205.0,4204.9,0.004]
[1758636842525,11.82516621,4205.0,4204.9,0.004]
[1758636842839,8.31448786,4205.0,4204.9,0.004]
[1758636843042,11.63448786,4205.0,4204.9,0.004]
[1758636843207,13.69248786,4205.0,4204.9,0.004]
[1758636843408,3.86604493,4205.0,4204.9,0.246]
[1758636843610,12.41416621,4205.0,4204.9,0.246]
[1758636844029,12.41416621,4205.0,4204.9,0.004]
[1758636844355,10.35616621,4205.0,4204.9,0.246]
[1758636845308,3.86604493,4205.0,4204.9,0.6794]
[1758636845546,4.97904493,4205.0,4204.9,0.6794]
[1758636845846,7.97904493,4205.0,4204.9,0.004]
[1758636846042,7.35716621,4205.0,4204.9,0.004]
[1758636846248,10.79756621,4205.0,4204.9,0.004]
[1758636846452,11.14916621,4205.0,4204.9,0.004]
[1758636846742,12.00111112,4205.0,4204.9,0.004]
[1758636846945,11.14916621,4205.0,4204.9,0.004]
[1758636847317,12.0011275,4205.0,4204.9,0.004]
[1758636847947,4.71800622,4205.0,4204.9,0.004]
[1758636848150,4.71800622,4205.0,4204.9,0.6794]
[1758636848151,3.86604493,4205.0,4204.9,0.6794]
[1758636848316,7.97904493,4205.0,4204.9,0.6794]
[1758636848713,10.35716621,4205.0,4204.9,0.6794]
[1758636849046,7.97904493,4205.0,4204.9,0.6794]
[1758636849374,8.61815859,4205.0,4204.9,0.6794]
[1758636849677,0.86604493,4205.0,4204.9,0.6794]
[1758636849874,4.97904493,4205.0,4204.9,0.6794]
[1758636850033,0.86604493,4205.0,4204.9,3.05757784]
[1758636850232,0.35485251,4205.0,4204.9,3.6015634]
[1758636850432,3.86604493,4205.0,4204.9,1.22338556]
[1758636850649,3.86604493,4205.0,4204.9,3.05757784]
[1758636850851,3.35485251,4205.0,4204.9,3.05757784]
[1758636851138,3.35485251,4205.0,4204.9,0.6794]
[1758636851375,0.35485251,4205.0,4204.9,3.05757784]
[1758636851668,0.35485251,4205.0,4204.9,0.6794]
[1758636852477,7.46785251,4205.0,4204.9,0.004]
[1758636852636,10.3573965,4205.0,4204.9,0.004]
[1758636852833,6.17017784,4204.9,4204.4,0.004]
[1758636853040,35.36921681,4204.5,4204.4,0.004]
[1758636853345,40.34849203,4204.5,4204.4,0.004]
[1758636854162,10.35782858,4204.5,4204.4,0.004]
[1758636855467,10.59012858,4204.5,4204.4,0.004]
[1758636855671,11.43078796,4204.5,4204.4,0.004]
[1758636855873,10.79162858,4204.5,4204.4,0.004]
[1758636856177,8.41322449,4204.5,4204.4,0.004]
[1758636856365,7.97942449,4204.5,4204.4,0.004]
[1758636856595,10.35782858,4204.5,4204.4,0.004]
[1758636857020,11.58362858,4204.5,4204.4,0.004]
[1758636857188,11.81592858,4204.5,4204.4,0.004]
[1758636857369,12.66788987,4204.5,4204.4,0.004]
[1758636857574,12.43558987,4204.5,4204.4,0.004]
[1758636858517,12.43736126,4204.5,4204.4,0.004]
[1758636859407,12.00356126,4204.5,4204.4,0.004]
[1758636859930,12.66966126,4204.5,4204.4,0.004]
[1758636860219,12.43736126,4204.5,4204.4,0.004]
[1758636860373,12.43736126,4204.5,4204.4,1e-08]
[1758636860374,11.81592858,4204.5,4204.4,1e-08]
[1758636860575,3.1705738,4204.2,4204.1,0.02]
[1758636860776,11.48829243,4204.2,4204.1,0.02]
[1758636860976,12.15439243,4204.2,4204.1,0.02]
[1758636861925,12.1545143,4204.2,4204.1,0.02]
[1758636862612,15.1545143,4204.2,4204.1,0.02]
[1758636862836,15.15494871,4204.2,4204.1,0.02]
[1758636863110,13.20855457,4204.2,4204.1,0.02]
[1758636863812,6.24555457,4204.2,4204.1,0.02]
[1758636863997,12.41655457,4204.2,4204.1,0.2515]
[1758636864434,12.41655457,4204.2,4204.1,0.02]
[1758636864607,13.87465457,4204.2,4204.1,0.02]
[1758636865008,13.87465457,4204.2,4202.3,0.2315]
[1758636865009,3.792,4203.5,4202.3,0.2315]
[1758636865204,6.23179721,4203.2,4202.3,0.2315]
[1758636865454,11.21177798,4203.2,4202.5,0.2315]
[1758636865847,11.21161326,4203.2,4202.5,0.2315]
[1758636866149,10.35895575,4203.2,4202.5,0.2315]
[1758636866349,12.41695575,4203.2,4202.5,0.6992]
[1758636866710,10.35895575,4203.2,4202.8,0.2315]
[1758636866910,12.41695575,4203.2,4202.8,0.2315]
[1758636868355,10.03781605,4203.2,4202.8,0.2315]
[1758636868559,10.03781605,4203.2,4202.1,0.02]
[1758636868560,4.50566256,4203.2,4203.1,0.7192]
[1758636868722,7.46795893,4203.2,4203.1,0.7192]
[1758636868922,10.35895575,4203.2,4203.1,0.2515]
[1758636869139,7.97981605,4203.2,4203.1,0.7192]
[1758636869873,7.97981605,4203.2,4203.1,0.2515]
[1758636870077,7.97981605,4203.2,4203.1,0.7192]
[1758636870278,4.97981605,4203.2,4203.1,0.7192]
[1758636870569,4.46795893,4203.2,4203.1,0.7192]
[1758636870769,4.46795893,4203.2,4203.1,3.0983963]
[1758636870936,4.46799948,4203.2,4203.1,3.0983963]
[1758636871558,4.46799948,4203.2,4203.1,0.7192]
[1758636871977,0.35499948,4203.2,4203.1,0.7192]
[1758636872176,3.13317612,4203.2,4203.1,0.7192]
[1758636872485,7.46798897,4203.2,4203.1,0.2515]
[1758636872692,7.46798897,4203.2,4203.1,0.7192]
[1758636873286,7.46798797,4203.2,4203.1,0.7192]
[1758636873458,7.46798797,4203.2,4203.1,0.2555]
[1758636874009,7.46798797,4203.2,4203.1,0.7232]
[1758636874296,7.46798797,4203.2,4203.1,0.024]
[1758636874581,9.84712767,4203.2,4203.1,0.024]
[1758636874983,11.02423357,4203.2,4203.1,0.024]
[1758636875481,10.35813357,4203.2,4203.1,0.024]
[1758636875978,12.41613357,4203.2,4203.1,0.024]
[1758636876650,6.24513357,4203.2,4203.1,0.024]
[1758636876997,12.41613357,4203.2,4203.1,0.024]
[1758636878682,10.03672283,4203.2,4203.1,0.024]
[1758636878883,12.41586253,4203.2,4203.1,0.024]
[1758636879386,3.86572283,4203.2,4203.1,0.024]
[1758636879588,0.35471693,4203.2,4203.1,0.7232]
[1758636879793,3.13301885,4203.2,4203.1,0.024]
[1758636880076,0.35479958,4203.2,4203.1,0.2555]